[Event "*** Titled Tuesday 3|2 Blitz"]
[Site "Chess.com"]
[Date "2017.05.02"]
[Round "1"]
[White "1random"]
[Black "penguingm1"]
[Result "0-1"]
[WhiteElo "2297"]
[BlackElo "2572"]
[TimeControl "180+2"]
[EndTime "13:03:06 PDT"]
[Termination "penguingm1 won by resignation"]

1. d4 {[%clk 0:02:59.5]} 1... d5 {[%clk 0:02:47.7]} 2. Bf4 {[%clk 0:02:58.2]}
2... Nf6 {[%clk 0:02:46.4]} 3. e3 {[%clk 0:02:57.7]} 3... e6 {[%clk 0:02:47.2]}
4. c3 {[%clk 0:02:55.9]} 4... c5 {[%clk 0:02:48.2]} 5. Bd3 {[%clk 0:02:56.9]}
5... Nc6 {[%clk 0:02:48.8]} 6. Nd2 {[%clk 0:02:58]} 6... Bd6 {[%clk 0:02:49.8]}
7. Bxd6 {[%clk 0:02:58.8]} 7... Qxd6 {[%clk 0:02:51.7]} 8. f4 {[%clk 0:03:00.4]}
8... O-O {[%clk 0:02:51.5]} 9. Ngf3 {[%clk 0:03:01.1]} 9... b6 {[%clk
0:02:53.2]} 10. a3 {[%clk 0:02:57.7]} 10... Bb7 {[%clk 0:02:50.7]} 11. O-O
{[%clk 0:02:55.9]} 11... Ne7 {[%clk 0:02:51.4]} 12. Qe2 {[%clk 0:02:55]} 12...
Nf5 {[%clk 0:02:49.6]} 13. Ne5 {[%clk 0:02:55]} 13... Qe7 {[%clk 0:02:50.7]} 14.
g4 {[%clk 0:02:50.9]} 14... Nd6 {[%clk 0:02:51.7]} 15. g5 {[%clk 0:02:50.1]}
15... Nfe4 {[%clk 0:02:52.4]} 16. Bxe4 {[%clk 0:02:42.5]} 16... dxe4 {[%clk
0:02:52.9]} 17. b4 {[%clk 0:02:39.9]} 17... cxd4 {[%clk 0:02:53.8]} 18. cxd4
{[%clk 0:02:37.8]} 18... f6 {[%clk 0:02:54.8]} 19. gxf6 {[%clk 0:02:35.4]} 19...
gxf6 {[%clk 0:02:56.7]} 20. Ng4 {[%clk 0:02:30.5]} 20... Kh8 {[%clk 0:02:57.3]}
21. Nf2 {[%clk 0:02:27.3]} 21... Rg8+ {[%clk 0:02:57.3]} 22. Kh1 {[%clk
0:02:28.8]} 22... Nf5 {[%clk 0:02:53.8]} 23. Rg1 {[%clk 0:02:26.9]} 23... Nxd4
{[%clk 0:02:48.5]} 24. Qh5 {[%clk 0:02:06.7]} 24... Nf5 {[%clk 0:02:44.6]} 0-1

[Event "*** Titled Tuesday 3|2 Blitz"]
[Site "Chess.com"]
[Date "2017.05.02"]
[Round "1"]
[White "RobertoJBM"]
[Black "Marreuh"]
[Result "1-0"]
[WhiteElo "2457"]
[BlackElo "2117"]
[TimeControl "180+2"]
[EndTime "13:03:14 PDT"]
[Termination "RobertoJBM won by resignation"]

1. d4 {[%clk 0:03:02]} 1... d5 {[%clk 0:02:59.3]} 2. c3 {[%clk 0:03:03.9]} 2...
c5 {[%clk 0:02:56.6]} 3. dxc5 {[%clk 0:03:03.7]} 3... e6 {[%clk 0:02:54.6]} 4.
e4 {[%clk 0:03:04.8]} 4... Bxc5 {[%clk 0:02:53.1]} 5. exd5 {[%clk 0:03:06]} 5...
exd5 {[%clk 0:02:54.7]} 6. Nf3 {[%clk 0:03:07.2]} 6... Nf6 {[%clk 0:02:55.4]} 7.
Bd3 {[%clk 0:03:06]} 7... O-O {[%clk 0:02:53.7]} 8. O-O {[%clk 0:03:07.1]} 8...
Nc6 {[%clk 0:02:53]} 9. Bg5 {[%clk 0:03:07.5]} 9... d4 {[%clk 0:02:38.1]} 10. b4
{[%clk 0:03:02.5]} 10... Bb6 {[%clk 0:02:31.4]} 11. b5 {[%clk 0:03:03.2]} 11...
Na5 {[%clk 0:02:24.8]} 12. Nxd4 {[%clk 0:03:03.3]} 12... Bxd4 {[%clk 0:02:25]}
13. cxd4 {[%clk 0:03:05.2]} 13... h6 {[%clk 0:02:25.1]} 14. Bh4 {[%clk
0:03:01.2]} 14... Be6 {[%clk 0:02:24]} 15. Be2 {[%clk 0:02:52.8]} 15... Rc8
{[%clk 0:02:05.6]} 16. Na3 {[%clk 0:02:46.3]} 16... Qd6 {[%clk 0:01:52.7]} 17.
Qa4 {[%clk 0:02:40.5]} 17... Nc4 {[%clk 0:01:49]} 18. Nxc4 {[%clk 0:02:38.3]}
18... Bxc4 {[%clk 0:01:45]} 19. Bxc4 {[%clk 0:02:39]} 19... Qxd4 {[%clk
0:01:45.6]} 20. Bxf7+ {[%clk 0:02:39.7]} 1-0

[Event "*** Titled Tuesday 3|2 Blitz"]
[Site "Chess.com"]
[Date "2017.05.02"]
[Round "1"]
[White "Rating-Schmating"]
[Black "Alexander_Donchenko"]
[Result "0-1"]
[WhiteElo "2212"]
[BlackElo "2513"]
[TimeControl "180+2"]
[EndTime "13:03:37 PDT"]
[Termination "Alexander_Donchenko won by resignation"]

1. e4 {[%clk 0:03:01.9]} 1... c5 {[%clk 0:03:00.3]} 2. Be2 {[%clk 0:03:01.1]}
2... Nc6 {[%clk 0:03:00.7]} 3. f4 {[%clk 0:03:01.5]} 3... e6 {[%clk 0:02:58.5]}
4. Nf3 {[%clk 0:03:00.2]} 4... d5 {[%clk 0:02:59.5]} 5. d3 {[%clk 0:03:01.7]}
5... Nf6 {[%clk 0:02:58.5]} 6. e5 {[%clk 0:03:01.8]} 6... Nd7 {[%clk 0:02:58.9]}
7. c3 {[%clk 0:03:03.1]} 7... Be7 {[%clk 0:02:59.8]} 8. Na3 {[%clk 0:03:03.9]}
8... Rb8 {[%clk 0:02:59.8]} 9. Nc2 {[%clk 0:03:04.9]} 9... b5 {[%clk 0:03:00.9]}
10. O-O {[%clk 0:03:06.2]} 10... b4 {[%clk 0:03:02]} 11. d4 {[%clk 0:03:06.5]}
11... bxc3 {[%clk 0:03:02.1]} 12. bxc3 {[%clk 0:03:07.8]} 12... Qa5 {[%clk
0:03:01]} 13. Qe1 {[%clk 0:03:05.4]} 13... Ba6 {[%clk 0:02:58.9]} 14. Bxa6
{[%clk 0:03:03.6]} 14... Qxa6 {[%clk 0:03:00.8]} 15. Be3 {[%clk 0:03:03.6]}
15... O-O {[%clk 0:02:59.6]} 16. Qd2 {[%clk 0:03:04.4]} 16... Nb6 {[%clk
0:02:56.7]} 17. Qf2 {[%clk 0:02:59.6]} 17... Nc4 {[%clk 0:02:56.9]} 18. dxc5
{[%clk 0:02:59.2]} 18... Nxe3 {[%clk 0:02:55]} 19. Qxe3 {[%clk 0:02:59.9]} 19...
Qa5 {[%clk 0:02:51.2]} 20. Ncd4 {[%clk 0:02:55.7]} 20... Bxc5 {[%clk 0:02:50.9]}
21. Rfb1 {[%clk 0:02:53.8]} 21... Rxb1+ {[%clk 0:02:50.1]} 22. Rxb1 {[%clk
0:02:54.7]} 22... Qxa2 {[%clk 0:02:50.9]} 23. Rb7 {[%clk 0:02:54]} 23... Qa6
{[%clk 0:02:47.2]} 24. Rc7 {[%clk 0:02:50.6]} 24... Qb6 {[%clk 0:02:47.3]} 25.
Rd7 {[%clk 0:02:40]} 25... Nb8 {[%clk 0:02:48.3]} 26. Rd6 {[%clk 0:02:31.6]}
26... Bxd6 {[%clk 0:02:49.6]} 27. exd6 {[%clk 0:02:33.3]} 27... Qxd6 {[%clk
0:02:50.9]} 28. Ne5 {[%clk 0:02:34.9]} 28... Nd7 {[%clk 0:02:48.3]} 29. Nb5
{[%clk 0:02:33.8]} 29... Qc5 {[%clk 0:02:46.8]} 30. Qxc5 {[%clk 0:02:29.1]}
30... Nxc5 {[%clk 0:02:48.7]} 31. Nxa7 {[%clk 0:02:30.6]} 31... Ne4 {[%clk
0:02:49.4]} 32. c4 {[%clk 0:02:31.7]} 32... dxc4 {[%clk 0:02:48]} 33. Kf1 {[%clk
0:02:26.3]} 33... c3 {[%clk 0:02:48.1]} 34. Nb5 {[%clk 0:02:23.9]} 34... c2
{[%clk 0:02:48.9]} 35. Nd3 {[%clk 0:02:24.6]} 35... Rd8 {[%clk 0:02:49.9]} 36.
Ke2 {[%clk 0:02:22.5]} 36... Rxd3 {[%clk 0:02:50.8]} 0-1

[Event "*** Titled Tuesday 3|2 Blitz"]
[Site "Chess.com"]
[Date "2017.05.02"]
[Round "1"]
[White "iturrizaga"]
[Black "andreimacovei2000"]
[Result "1-0"]
[WhiteElo "2663"]
[BlackElo "2358"]
[TimeControl "180+2"]
[EndTime "13:03:38 PDT"]
[Termination "iturrizaga won by resignation"]

1. Nf3 {[%clk 0:03:01.3]} 1... Nf6 {[%clk 0:02:59.4]} 2. c4 {[%clk 0:03:03.2]}
2... g6 {[%clk 0:02:58.7]} 3. g3 {[%clk 0:03:05.1]} 3... Bg7 {[%clk 0:02:59.8]}
4. Bg2 {[%clk 0:03:07]} 4... O-O {[%clk 0:03:01.4]} 5. O-O {[%clk 0:03:08.9]}
5... d6 {[%clk 0:03:01.6]} 6. d4 {[%clk 0:03:10.5]} 6... Nbd7 {[%clk 0:03:03]}
7. Nc3 {[%clk 0:03:12.2]} 7... e5 {[%clk 0:03:04.4]} 8. Qc2 {[%clk 0:03:13.3]}
8... exd4 {[%clk 0:03:04.7]} 9. Nxd4 {[%clk 0:03:15.2]} 9... Nb6 {[%clk
0:03:05.9]} 10. b3 {[%clk 0:03:14.8]} 10... c5 {[%clk 0:03:05.8]} 11. Ndb5
{[%clk 0:03:14.6]} 11... Bf5 {[%clk 0:03:02.7]} 12. e4 {[%clk 0:03:15.7]} 12...
Nxe4 {[%clk 0:02:42]} 13. Bxe4 {[%clk 0:03:15.9]} 13... Bxe4 {[%clk 0:02:43.1]}
14. Nxe4 {[%clk 0:03:06.6]} 14... Bxa1 {[%clk 0:02:40.2]} 15. Bg5 {[%clk
0:03:07.5]} 15... f6 {[%clk 0:02:35]} 16. Bh6 {[%clk 0:03:08.5]} 16... Be5
{[%clk 0:02:24.4]} 17. f4 {[%clk 0:03:02.1]} 17... Bd4+ {[%clk 0:02:18.4]} 18.
Nxd4 {[%clk 0:02:59.6]} 18... cxd4 {[%clk 0:02:20.3]} 19. Bxf8 {[%clk
0:02:57.2]} 19... Qxf8 {[%clk 0:02:06.9]} 20. f5 {[%clk 0:02:58.1]} 20... g5
{[%clk 0:02:02.3]} 21. Qd3 {[%clk 0:02:58.6]} 21... d5 {[%clk 0:01:57.2]} 22.
cxd5 {[%clk 0:03:00.5]} 22... Nxd5 {[%clk 0:01:58.4]} 23. Qxd4 {[%clk
0:03:00.8]} 23... Rd8 {[%clk 0:01:45.8]} 24. Rd1 {[%clk 0:03:00.9]} 24... Kg7
{[%clk 0:01:46]} 25. Nxg5 {[%clk 0:02:51.9]} 1-0

[Event "*** Titled Tuesday 3|2 Blitz"]
[Site "Chess.com"]
[Date "2017.05.02"]
[Round "1"]
[White "Abrito99"]
[Black "PaulfromSPb"]
[Result "0-1"]
[WhiteElo "2267"]
[BlackElo "2567"]
[TimeControl "180+2"]
[EndTime "13:03:53 PDT"]
[Termination "PaulfromSPb won by resignation"]

1. e4 {[%clk 0:03:01.2]} 1... c5 {[%clk 0:02:57.8]} 2. Nf3 {[%clk 0:03:00.8]}
2... d6 {[%clk 0:02:58]} 3. d4 {[%clk 0:02:56.6]} 3... cxd4 {[%clk 0:02:59.1]}
4. Nxd4 {[%clk 0:02:57.4]} 4... Nf6 {[%clk 0:03:00.3]} 5. Nc3 {[%clk 0:02:58]}
5... a6 {[%clk 0:03:01.5]} 6. f3 {[%clk 0:02:58.5]} 6... e5 {[%clk 0:03:02.4]}
7. Nb3 {[%clk 0:02:59]} 7... Be7 {[%clk 0:03:03.9]} 8. Be3 {[%clk 0:02:57.2]}
8... Be6 {[%clk 0:03:05]} 9. Qd2 {[%clk 0:02:55.1]} 9... O-O {[%clk 0:03:06.4]}
10. O-O-O {[%clk 0:02:54.7]} 10... a5 {[%clk 0:03:07.7]} 11. Bb5 {[%clk
0:02:46.6]} 11... Na6 {[%clk 0:02:59.5]} 12. g4 {[%clk 0:02:41.2]} 12... Nc7
{[%clk 0:02:59.6]} 13. Ba4 {[%clk 0:02:04]} 13... Qb8 {[%clk 0:02:58.7]} 14. Qd3
{[%clk 0:02:04.1]} 14... d5 {[%clk 0:02:53]} 15. exd5 {[%clk 0:02:03.3]} 15...
Nfxd5 {[%clk 0:02:52.2]} 16. Nxd5 {[%clk 0:02:04]} 16... Nxd5 {[%clk 0:02:52.3]}
17. Bd2 {[%clk 0:02:00.3]} 17... Nb4 {[%clk 0:02:48.7]} 18. Bxb4 {[%clk
0:01:59.4]} 18... axb4 {[%clk 0:02:49.7]} 19. Qb5 {[%clk 0:01:59.3]} 19... Rc8
{[%clk 0:02:45.6]} 20. Rhe1 {[%clk 0:01:53.1]} 20... Qa7 {[%clk 0:02:38]} 21.
Na5 {[%clk 0:01:45.1]} 21... Qxa5 {[%clk 0:02:35.6]} 0-1

[Event "*** Titled Tuesday 3|2 Blitz"]
[Site "Chess.com"]
[Date "2017.05.02"]
[Round "1"]
[White "stefanodinn"]
[Black "yurisolo"]
[Result "0-1"]
[WhiteElo "2200"]
[BlackElo "2499"]
[TimeControl "180+2"]
[EndTime "13:05:45 PDT"]
[Termination "yurisolo won by resignation"]

1. e4 {[%clk 0:02:41.9]} 1... c5 {[%clk 0:03:01.1]} 2. Nf3 {[%clk 0:02:40.7]}
2... e6 {[%clk 0:03:02.6]} 3. d4 {[%clk 0:02:40.2]} 3... cxd4 {[%clk 0:03:04.5]}
4. Nxd4 {[%clk 0:02:41.3]} 4... Nc6 {[%clk 0:03:04.7]} 5. Nb5 {[%clk 0:02:39.2]}
5... d6 {[%clk 0:03:05.6]} 6. c4 {[%clk 0:02:40]} 6... Nf6 {[%clk 0:03:04.5]} 7.
N1c3 {[%clk 0:02:40.5]} 7... a6 {[%clk 0:03:05.3]} 8. Nd4 {[%clk 0:02:41.4]}
8... Bd7 {[%clk 0:02:56.8]} 9. Be2 {[%clk 0:02:41.7]} 9... Rc8 {[%clk
0:02:57.3]} 10. b3 {[%clk 0:02:29.8]} 10... Qa5 {[%clk 0:02:28.8]} 11. Nxc6
{[%clk 0:02:17.1]} 11... Bxc6 {[%clk 0:02:30.7]} 12. Bd2 {[%clk 0:02:16.9]}
12... Qe5 {[%clk 0:02:16.4]} 13. f3 {[%clk 0:02:03.8]} 13... d5 {[%clk
0:02:17.2]} 14. cxd5 {[%clk 0:01:50]} 14... exd5 {[%clk 0:02:18]} 15. exd5
{[%clk 0:01:40.5]} 15... Bd7 {[%clk 0:02:02.2]} 16. Rc1 {[%clk 0:01:00.3]} 16...
Bc5 {[%clk 0:02:01.7]} 17. Kf1 {[%clk 0:00:23.6]} 17... O-O {[%clk 0:01:53.5]}
18. Be1 {[%clk 0:00:24.6]} 18... Rfd8 {[%clk 0:01:41.7]} 19. Bf2 {[%clk
0:00:17.6]} 19... Bxf2 {[%clk 0:01:39.2]} 20. Kxf2 {[%clk 0:00:18]} 20... Rxc3
{[%clk 0:01:40.2]} 0-1

[Event "*** Titled Tuesday 3|2 Blitz"]
[Site "Chess.com"]
[Date "2017.05.02"]
[Round "1"]
[White "David_Klein"]
[Black "Sinquefield"]
[Result "1-0"]
[WhiteElo "2485"]
[BlackElo "2150"]
[TimeControl "180+2"]
[EndTime "13:05:48 PDT"]
[Termination "David_Klein won by resignation"]

1. e4 {[%clk 0:03:00.9]} 1... e6 {[%clk 0:02:24.7]} 2. Qe2 {[%clk 0:03:00]} 2...
d5 {[%clk 0:02:26.6]} 3. exd5 {[%clk 0:02:56]} 3... Qxd5 {[%clk 0:02:28.5]} 4.
Nc3 {[%clk 0:02:51.5]} 4... Qd8 {[%clk 0:02:26.6]} 5. g3 {[%clk 0:02:52.2]} 5...
Nf6 {[%clk 0:02:24.9]} 6. Bg2 {[%clk 0:02:53.2]} 6... Be7 {[%clk 0:02:25.8]} 7.
Nf3 {[%clk 0:02:54.1]} 7... O-O {[%clk 0:02:27.4]} 8. d4 {[%clk 0:02:53.6]} 8...
c5 {[%clk 0:02:27.3]} 9. dxc5 {[%clk 0:02:52.9]} 9... Bxc5 {[%clk 0:02:29.2]}
10. Bg5 {[%clk 0:02:53.6]} 10... Nc6 {[%clk 0:02:27.5]} 11. Rd1 {[%clk
0:02:52.8]} 11... Qa5 {[%clk 0:02:05.8]} 12. O-O {[%clk 0:02:45.6]} 12... Nd5
{[%clk 0:00:28.7]} 13. Ne4 {[%clk 0:02:43.6]} 13... Be7 {[%clk 0:00:25.4]} 14.
c4 {[%clk 0:02:41.5]} 14... Nb6 {[%clk 0:00:17.8]} 15. Bxe7 {[%clk 0:02:34.8]}
15... Nxe7 {[%clk 0:00:19.7]} 16. a3 {[%clk 0:02:35.8]} 16... Qh5 {[%clk
0:00:08.3]} 17. Nd6 {[%clk 0:02:25.3]} 17... Nf5 {[%clk 0:00:09.1]} 18. Nxf5
{[%clk 0:02:21.2]} 18... Qxf5 {[%clk 0:00:11]} 19. Nd4 {[%clk 0:02:21.8]} 19...
Qf6 {[%clk 0:00:12.6]} 20. b4 {[%clk 0:02:20.7]} 20... e5 {[%clk 0:00:13.9]} 21.
Nb5 {[%clk 0:02:20.5]} 21... a6 {[%clk 0:00:14.2]} 22. Nc7 {[%clk 0:02:20.7]}
22... Bf5 {[%clk 0:00:14.4]} 23. Nxa8 {[%clk 0:02:20.7]} 1-0

[Event "*** Titled Tuesday 3|2 Blitz"]
[Site "Chess.com"]
[Date "2017.05.02"]
[Round "1"]
[White "1lec"]
[Black "Gabix_94"]
[Result "0-1"]
[WhiteElo "2061"]
[BlackElo "2449"]
[TimeControl "180+2"]
[EndTime "13:05:54 PDT"]
[Termination "Gabix_94 won by resignation"]

1. e4 {[%clk 0:03:01]} 1... c5 {[%clk 0:02:59.6]} 2. Nf3 {[%clk 0:03:01.8]} 2...
e6 {[%clk 0:02:55.6]} 3. g3 {[%clk 0:03:02.4]} 3... Nc6 {[%clk 0:02:54.4]} 4.
Bg2 {[%clk 0:03:03.3]} 4... d6 {[%clk 0:02:56]} 5. O-O {[%clk 0:03:03.8]} 5...
Nf6 {[%clk 0:02:57.5]} 6. Qe2 {[%clk 0:03:02.1]} 6... Be7 {[%clk 0:02:55.7]} 7.
Rd1 {[%clk 0:03:02.1]} 7... O-O {[%clk 0:02:55.7]} 8. d4 {[%clk 0:03:00.7]} 8...
cxd4 {[%clk 0:02:56.4]} 9. Nxd4 {[%clk 0:03:02.3]} 9... Qc7 {[%clk 0:02:57.4]}
10. c4 {[%clk 0:02:36.3]} 10... a6 {[%clk 0:02:57.4]} 11. Nc3 {[%clk 0:02:36.8]}
11... Ne5 {[%clk 0:02:56.7]} 12. Bf1 {[%clk 0:02:04.1]} 12... b6 {[%clk
0:02:53.6]} 13. f4 {[%clk 0:01:57.9]} 13... Ned7 {[%clk 0:02:54.5]} 14. Bg2
{[%clk 0:01:54.2]} 14... Bb7 {[%clk 0:02:55.8]} 15. Be3 {[%clk 0:01:47.3]} 15...
Rac8 {[%clk 0:02:54.2]} 16. Rac1 {[%clk 0:01:48.1]} 16... Rfe8 {[%clk
0:02:51.9]} 17. b3 {[%clk 0:01:39]} 17... Qb8 {[%clk 0:02:52.2]} 18. h3 {[%clk
0:01:37.1]} 18... Bf8 {[%clk 0:02:53]} 19. g4 {[%clk 0:01:37]} 19... Qa8 {[%clk
0:02:46.9]} 20. Bf2 {[%clk 0:01:34]} 20... Nc5 {[%clk 0:02:46.5]} 21. Re1 {[%clk
0:01:27.7]} 21... g6 {[%clk 0:02:44.9]} 22. g5 {[%clk 0:01:24.9]} 22... Nh5
{[%clk 0:02:45]} 23. Qf3 {[%clk 0:00:57.8]} 23... Bg7 {[%clk 0:02:44.6]} 24.
Nde2 {[%clk 0:00:36.3]} 24... d5 {[%clk 0:02:38.7]} 25. cxd5 {[%clk 0:00:30.7]}
25... exd5 {[%clk 0:02:40.6]} 26. Nxd5 {[%clk 0:00:27.5]} 26... Nxe4 {[%clk
0:02:39.3]} 27. Rxc8 {[%clk 0:00:20.8]} 27... Qxc8 {[%clk 0:02:38.7]} 28. Nxb6
{[%clk 0:00:19.1]} 28... Qd8 {[%clk 0:02:36.4]} 29. Nc4 {[%clk 0:00:19.5]} 29...
Re7 {[%clk 0:02:23.5]} 30. Bb6 {[%clk 0:00:19.8]} 30... Qe8 {[%clk 0:02:21.8]}
31. Rf1 {[%clk 0:00:12.8]} 31... Nc3 {[%clk 0:02:19.5]} 32. Nxc3 {[%clk
0:00:12.2]} 32... Bxf3 {[%clk 0:02:19.9]} 0-1

[Event "*** Titled Tuesday 3|2 Blitz"]
[Site "Chess.com"]
[Date "2017.05.02"]
[Round "1"]
[White "XiaoKangZhong"]
[Black "TricksOnly"]
[Result "0-1"]
[WhiteElo "2009"]
[BlackElo "2437"]
[TimeControl "180+2"]
[EndTime "13:06:34 PDT"]
[Termination "TricksOnly won by resignation"]

1. e4 {[%clk 0:03:00.9]} 1... d5 {[%clk 0:02:58.2]} 2. exd5 {[%clk 0:02:59.1]}
2... Nf6 {[%clk 0:02:59.1]} 3. c4 {[%clk 0:02:57.5]} 3... e6 {[%clk 0:02:59.2]}
4. dxe6 {[%clk 0:02:57.8]} 4... Bxe6 {[%clk 0:03:01.1]} 5. Nf3 {[%clk
0:02:58.1]} 5... Nc6 {[%clk 0:03:00.7]} 6. Nc3 {[%clk 0:02:58.2]} 6... Bc5
{[%clk 0:02:59.8]} 7. d3 {[%clk 0:02:58.6]} 7... Qd7 {[%clk 0:02:51]} 8. Be3
{[%clk 0:02:58.8]} 8... Nd4 {[%clk 0:02:36.8]} 9. Nxd4 {[%clk 0:02:37.6]} 9...
Bxd4 {[%clk 0:02:37.4]} 10. Be2 {[%clk 0:02:37.1]} 10... O-O {[%clk 0:02:33.1]}
11. O-O {[%clk 0:02:37.3]} 11... Rfe8 {[%clk 0:02:32]} 12. Qd2 {[%clk
0:02:34.1]} 12... Rad8 {[%clk 0:02:31.9]} 13. Nb5 {[%clk 0:02:29.3]} 13... Bxe3
{[%clk 0:02:29.7]} 14. fxe3 {[%clk 0:02:23.2]} 14... Bxc4 {[%clk 0:02:28.1]} 15.
Nd4 {[%clk 0:02:23.3]} 15... Bd5 {[%clk 0:02:13.6]} 16. e4 {[%clk 0:02:12]}
16... Bxe4 {[%clk 0:02:08.7]} 17. dxe4 {[%clk 0:02:09.8]} 17... Qxd4+ {[%clk
0:02:08.1]} 18. Qxd4 {[%clk 0:02:10]} 18... Rxd4 {[%clk 0:02:10]} 19. Bf3 {[%clk
0:02:11.1]} 19... Nxe4 {[%clk 0:02:05.4]} 20. Rfe1 {[%clk 0:02:09.6]} 20... f5
{[%clk 0:02:05.3]} 21. Rad1 {[%clk 0:01:56.2]} 21... Red8 {[%clk 0:01:54.6]} 22.
Rxd4 {[%clk 0:01:44.3]} 22... Rxd4 {[%clk 0:01:56.5]} 23. Bxe4 {[%clk
0:01:45.5]} 23... fxe4 {[%clk 0:01:52]} 24. Re2 {[%clk 0:01:43.9]} 24... Kf7
{[%clk 0:01:51.9]} 25. Kf2 {[%clk 0:01:44.1]} 25... Ke6 {[%clk 0:01:52.8]} 26.
g3 {[%clk 0:01:42]} 26... Ke5 {[%clk 0:01:50.9]} 27. Rc2 {[%clk 0:01:42.5]}
27... c6 {[%clk 0:01:50.3]} 28. Rc5+ {[%clk 0:01:42.4]} 28... Rd5 {[%clk
0:01:51.3]} 29. Rc4 {[%clk 0:01:41.3]} 29... Rd2+ {[%clk 0:01:44.3]} 30. Ke3
{[%clk 0:01:41.6]} 30... Rxb2 {[%clk 0:01:45.1]} 31. Rxe4+ {[%clk 0:01:41.1]}
31... Kd6 {[%clk 0:01:39.6]} 32. Rd4+ {[%clk 0:01:41]} 32... Kc7 {[%clk
0:01:35.5]} 33. Rh4 {[%clk 0:01:37.8]} 33... h6 {[%clk 0:01:33.8]} 34. a4 {[%clk
0:01:34]} 34... b5 {[%clk 0:01:32.2]} 35. axb5 {[%clk 0:01:33.6]} 35... cxb5
{[%clk 0:01:34.1]} 36. Rg4 {[%clk 0:01:34.4]} 36... g5 {[%clk 0:01:33.9]} 37. h4
{[%clk 0:01:34.8]} 37... gxh4 {[%clk 0:01:33.9]} 38. Rxh4 {[%clk 0:01:35.1]}
38... a5 {[%clk 0:01:34.6]} 39. Rxh6 {[%clk 0:01:35.6]} 39... a4 {[%clk
0:01:35.6]} 40. g4 {[%clk 0:01:36.5]} 40... Kb7 {[%clk 0:01:33.7]} 41. g5 {[%clk
0:01:35]} 41... a3 {[%clk 0:01:33]} 42. Rh1 {[%clk 0:01:35.2]} 42... Rg2 {[%clk
0:01:31.1]} 43. Kf4 {[%clk 0:01:35.2]} 43... b4 {[%clk 0:01:30.9]} 44. Kf5
{[%clk 0:01:35.8]} 44... b3 {[%clk 0:01:31.1]} 45. g6 {[%clk 0:01:36.3]} 45...
a2 {[%clk 0:01:31.2]} 46. Kf6 {[%clk 0:01:36.5]} 46... b2 {[%clk 0:01:31.5]} 47.
Kf7 {[%clk 0:01:37.7]} 47... Rxg6 {[%clk 0:01:32]} 48. Kxg6 {[%clk 0:01:37.5]}
48... b1=Q+ {[%clk 0:01:32.9]} 49. Rxb1+ {[%clk 0:01:38.4]} 49... axb1=Q+ {[%clk
0:01:34.6]} 0-1

[Event "*** Titled Tuesday 3|2 Blitz"]
[Site "Chess.com"]
[Date "2017.05.02"]
[Round "1"]
[White "BjarkeSahl"]
[Black "Astaneh"]
[Result "1-0"]
[WhiteElo "2155"]
[BlackElo "2438"]
[TimeControl "180+2"]
[EndTime "13:06:37 PDT"]
[Termination "BjarkeSahl won by checkmate"]

1. e4 {[%clk 0:02:19.9]} 1... c6 {[%clk 0:02:51.9]} 2. d4 {[%clk 0:02:20.1]}
2... d5 {[%clk 0:02:52.3]} 3. Nd2 {[%clk 0:02:18.6]} 3... dxe4 {[%clk
0:02:52.3]} 4. Nxe4 {[%clk 0:02:19.8]} 4... Nd7 {[%clk 0:02:50.2]} 5. Bc4 {[%clk
0:02:18.3]} 5... Ngf6 {[%clk 0:02:46.4]} 6. Ng5 {[%clk 0:02:17.8]} 6... e6
{[%clk 0:02:47.3]} 7. Qe2 {[%clk 0:02:18.5]} 7... Nb6 {[%clk 0:02:44.6]} 8. Bd3
{[%clk 0:02:17.5]} 8... h6 {[%clk 0:02:38.9]} 9. N5f3 {[%clk 0:02:17.7]} 9... c5
{[%clk 0:02:34.9]} 10. c3 {[%clk 0:02:18.4]} 10... a6 {[%clk 0:02:20.3]} 11. Nh3
{[%clk 0:02:14.3]} 11... cxd4 {[%clk 0:02:10.1]} 12. Nxd4 {[%clk 0:02:14.4]}
12... Bc5 {[%clk 0:02:10.2]} 13. Nf5 {[%clk 0:02:08.3]} 13... O-O {[%clk
0:02:09.7]} 14. Nxh6+ {[%clk 0:02:06.8]} 14... gxh6 {[%clk 0:02:11.6]} 15. Bxh6
{[%clk 0:02:07.3]} 15... Re8 {[%clk 0:02:07.4]} 16. O-O-O {[%clk 0:02:07.1]}
16... Nbd5 {[%clk 0:01:21.9]} 17. g4 {[%clk 0:01:49.2]} 17... e5 {[%clk
0:00:57.7]} 18. Rhg1 {[%clk 0:01:33]} 18... e4 {[%clk 0:00:43.3]} 19. Bc4 {[%clk
0:01:24.6]} 19... Be6 {[%clk 0:00:17.4]} 20. g5 {[%clk 0:01:24.9]} 20... Nh7
{[%clk 0:00:17.8]} 21. g6 {[%clk 0:01:25]} 21... fxg6 {[%clk 0:00:19.7]} 22.
Rxg6+ {[%clk 0:01:25]} 22... Kf7 {[%clk 0:00:21]} 23. Qh5 {[%clk 0:01:24.7]}
23... Ke7 {[%clk 0:00:19.6]} 24. Rxe6+ {[%clk 0:01:20]} 24... Kxe6 {[%clk
0:00:21.5]} 25. Rxd5 {[%clk 0:01:20.9]} 25... Qf6 {[%clk 0:00:19.7]} 26. Rxc5+
{[%clk 0:01:09.3]} 26... Kd6 {[%clk 0:00:21.2]} 27. Qd5+ {[%clk 0:01:08.6]}
27... Ke7 {[%clk 0:00:22.7]} 28. Rc7# {[%clk 0:01:09.7]} 1-0